[Event "*** Titled Tuesday 3|2 Blitz"]
[Site "Chess.com"]
[Date "2016.08.02"]
[Round "5"]
[White "Krutoy123"]
[Black "Alexander_Moskalenko"]
[Result "0-1"]
[WhiteElo "2416"]
[BlackElo "2620"]
[TimeControl "180+2"]
[EndTime "12:08:14 PDT"]
[Termination "Alexander_Moskalenko won by resignation"]

1. e4 {[%clk 0:03:01.9]} 1... c5 {[%clk 0:02:55.9]} 2. Nf3 {[%clk 0:03:02.9]}
2... d6 {[%clk 0:02:56.9]} 3. d4 {[%clk 0:03:02.1]} 3... cxd4 {[%clk 0:02:58.8]}
4. Nxd4 {[%clk 0:03:01.3]} 4... Nf6 {[%clk 0:03:00.4]} 5. Nc3 {[%clk 0:03:02.3]}
5... g6 {[%clk 0:03:02]} 6. Be3 {[%clk 0:03:02.8]} 6... Bg7 {[%clk 0:03:03.3]}
7. f3 {[%clk 0:03:04]} 7... Nc6 {[%clk 0:03:04.8]} 8. Qd2 {[%clk 0:03:05.3]}
8... O-O {[%clk 0:03:06.4]} 9. g4 {[%clk 0:03:06.5]} 9... Be6 {[%clk 0:03:04.2]}
10. Nxe6 {[%clk 0:03:07.4]} 10... fxe6 {[%clk 0:03:03.7]} 11. O-O-O {[%clk
0:03:08.2]} 11... Ne5 {[%clk 0:02:40.4]} 12. Be2 {[%clk 0:03:09.2]} 12... Qc8
{[%clk 0:02:41.8]} 13. Kb1 {[%clk 0:02:59.5]} 13... Nfd7 {[%clk 0:02:28.5]} 14.
Rhf1 {[%clk 0:02:41.2]} 14... Nb6 {[%clk 0:02:19.7]} 15. Bd4 {[%clk 0:02:35.4]}
15... Nec4 {[%clk 0:02:18.8]} 16. Bxc4 {[%clk 0:02:34.9]} 16... Nxc4 {[%clk
0:02:20.7]} 17. Qd3 {[%clk 0:02:34]} 17... b5 {[%clk 0:02:06.3]} 18. Bxg7 {[%clk
0:02:27.9]} 18... Kxg7 {[%clk 0:02:06.8]} 19. b3 {[%clk 0:02:27.2]} 19... b4
{[%clk 0:01:56.4]} 20. Ne2 {[%clk 0:02:12]} 20... Na3+ {[%clk 0:01:47.2]} 21.
Kb2 {[%clk 0:02:12.9]} 21... a5 {[%clk 0:01:48.9]} 22. f4 {[%clk 0:02:10]} 22...
a4 {[%clk 0:01:44.8]} 23. Nd4 {[%clk 0:02:09.1]} 23... e5 {[%clk 0:01:19.9]} 24.
fxe5 {[%clk 0:02:10.1]} 24... Rxf1 {[%clk 0:01:21.5]} 25. Rxf1 {[%clk 0:01:58]}
25... dxe5 {[%clk 0:01:22.6]} 26. Nf3 {[%clk 0:01:54.8]} 26... axb3 {[%clk
0:01:24.1]} 27. cxb3 {[%clk 0:01:49.9]} 27... Ra5 {[%clk 0:01:10.7]} 28. Rc1
{[%clk 0:00:25.1]} 28... Rc5 {[%clk 0:01:11.6]} 29. Qd2 {[%clk 0:00:21.7]} 29...
Rxc1 {[%clk 0:01:05.4]} 30. Qxc1 {[%clk 0:00:23.6]} 30... Qxg4 {[%clk 0:01:07]}
31. Qe3 {[%clk 0:00:12.2]} 31... Nb5 {[%clk 0:00:58.8]} 32. Qd3 {[%clk
0:00:06.3]} 32... Qg2+ {[%clk 0:00:57.4]} 33. Nd2 {[%clk 0:00:06.3]} 33... Nd6
{[%clk 0:00:47.7]} 34. Kc2 {[%clk 0:00:05.5]} 34... Qxh2 {[%clk 0:00:46.4]} 35.
Qd5 {[%clk 0:00:04.8]} 35... Qf4 {[%clk 0:00:44.8]} 36. Qe6 {[%clk 0:00:05.7]}
36... Qf6 {[%clk 0:00:45.9]} 37. Qd5 {[%clk 0:00:05.3]} 37... h5 {[%clk
0:00:46.4]} 38. Qc5 {[%clk 0:00:06.9]} 38... h4 {[%clk 0:00:43]} 39. Qxb4 {[%clk
0:00:08.5]} 39... g5 {[%clk 0:00:42.3]} 40. Qc3 {[%clk 0:00:09.3]} 40... g4
{[%clk 0:00:43.3]} 41. a4 {[%clk 0:00:07.8]} 41... g3 {[%clk 0:00:39.1]} 42. a5
{[%clk 0:00:08.7]} 42... Qf4 {[%clk 0:00:34]} 43. a6 {[%clk 0:00:08.9]} 43...
Nxe4 {[%clk 0:00:35.2]} 44. Qb4 {[%clk 0:00:07.4]} 44... g2 {[%clk 0:00:16.3]}
45. a7 {[%clk 0:00:07.3]} 45... g1=Q {[%clk 0:00:16.3]} 46. a8=Q {[%clk
0:00:08.6]} 46... Qxd2+ {[%clk 0:00:17.6]} 47. Qxd2 {[%clk 0:00:07.1]} 47...
Nxd2 {[%clk 0:00:19.5]} 48. Kxd2 {[%clk 0:00:08.9]} 48... Qd4+ {[%clk
0:00:20.9]} 49. Ke2 {[%clk 0:00:10.2]} 49... e4 {[%clk 0:00:22.5]} 50. b4 {[%clk
0:00:11.1]} 50... Qd3+ {[%clk 0:00:21.6]} 51. Ke1 {[%clk 0:00:12.5]} 51... Qc3+
{[%clk 0:00:22.2]} 52. Ke2 {[%clk 0:00:13.6]} 52... Qxb4 {[%clk 0:00:23.8]} 53.
Ke3 {[%clk 0:00:15.1]} 53... Qe1+ {[%clk 0:00:22.9]} 54. Kf4 {[%clk 0:00:12.4]}
54... Qg3+ {[%clk 0:00:23.6]} 55. Kf5 {[%clk 0:00:13.8]} 55... h3 {[%clk
0:00:21.4]} 56. Qa1+ {[%clk 0:00:13.6]} 56... Kh7 {[%clk 0:00:21.1]} 57. Qa7
{[%clk 0:00:14]} 57... Qg6+ {[%clk 0:00:21.5]} 58. Ke5 {[%clk 0:00:15.3]} 58...
Qf6+ {[%clk 0:00:22]} 59. Kxe4 {[%clk 0:00:15.5]} 59... h2 {[%clk 0:00:23.5]}
0-1

[Event "*** Titled Tuesday 3|2 Blitz"]
[Site "Chess.com"]
[Date "2016.08.02"]
[Round "5"]
[White "fastestmindalive"]
[Black "Genghis_K"]
[Result "1/2-1/2"]
[WhiteElo "2410"]
[BlackElo "2687"]
[TimeControl "180+2"]
[EndTime "12:08:17 PDT"]
[Termination "Game drawn - insufficient material"]

1. e4 {[%clk 0:03:01]} 1... c5 {[%clk 0:02:59.7]} 2. Nc3 {[%clk 0:03:01]} 2...
Nc6 {[%clk 0:02:59.1]} 3. Bb5 {[%clk 0:02:58.5]} 3... Nd4 {[%clk 0:02:56.7]} 4.
Nf3 {[%clk 0:02:59.9]} 4... g6 {[%clk 0:02:55.7]} 5. O-O {[%clk 0:02:58.7]} 5...
Bg7 {[%clk 0:02:55.4]} 6. Nxd4 {[%clk 0:02:58.5]} 6... cxd4 {[%clk 0:02:55.5]}
7. Ne2 {[%clk 0:03:00.1]} 7... a6 {[%clk 0:02:49.3]} 8. Bd3 {[%clk 0:03:00.7]}
8... Nf6 {[%clk 0:02:50.3]} 9. c3 {[%clk 0:03:01.1]} 9... dxc3 {[%clk
0:02:49.4]} 10. dxc3 {[%clk 0:03:01.6]} 10... O-O {[%clk 0:02:50]} 11. h3 {[%clk
0:02:53.7]} 11... d6 {[%clk 0:02:48.1]} 12. Be3 {[%clk 0:02:53.2]} 12... Bd7
{[%clk 0:02:39.8]} 13. Qd2 {[%clk 0:02:46.7]} 13... Bc6 {[%clk 0:02:38.6]} 14.
Ng3 {[%clk 0:02:29.2]} 14... e5 {[%clk 0:02:28.8]} 15. Bh6 {[%clk 0:02:24.9]}
15... d5 {[%clk 0:02:28.7]} 16. Bxg7 {[%clk 0:02:15.5]} 16... Kxg7 {[%clk
0:02:30.6]} 17. Qe2 {[%clk 0:01:57]} 17... h5 {[%clk 0:02:29.9]} 18. f4 {[%clk
0:01:42.1]} 18... dxe4 {[%clk 0:01:56.1]} 19. Nxe4 {[%clk 0:01:40.8]} 19... Nxe4
{[%clk 0:01:49]} 20. Bxe4 {[%clk 0:01:40.1]} 20... exf4 {[%clk 0:01:36.6]} 21.
Bxc6 {[%clk 0:01:39.8]} 21... bxc6 {[%clk 0:01:38.5]} 22. Rxf4 {[%clk
0:01:39.2]} 22... Qg5 {[%clk 0:01:31.5]} 23. Raf1 {[%clk 0:01:37.7]} 23... Rae8
{[%clk 0:01:23.3]} 24. Qxa6 {[%clk 0:01:34.9]} 24... Qc5+ {[%clk 0:01:15.2]} 25.
Kh1 {[%clk 0:01:32.8]} 25... Re7 {[%clk 0:01:02.3]} 26. Qc4 {[%clk 0:01:31.1]}
26... Qxc4 {[%clk 0:00:58.7]} 27. Rxc4 {[%clk 0:01:32.1]} 27... Re2 {[%clk
0:01:00.4]} 28. b4 {[%clk 0:01:25.7]} 28... Ra8 {[%clk 0:00:55.2]} 29. Ra1
{[%clk 0:01:20.8]} 29... Rd8 {[%clk 0:00:53.9]} 30. Rxc6 {[%clk 0:00:24.4]}
30... Rdd2 {[%clk 0:00:53.1]} 31. Rg1 {[%clk 0:00:25.9]} 31... Rxa2 {[%clk
0:00:53.1]} 32. b5 {[%clk 0:00:27.1]} 32... Rab2 {[%clk 0:00:53.7]} 33. b6
{[%clk 0:00:28]} 33... Re6 {[%clk 0:00:47.4]} 34. Rxe6 {[%clk 0:00:23.1]} 34...
fxe6 {[%clk 0:00:47.1]} 35. Re1 {[%clk 0:00:23.9]} 35... Rxb6 {[%clk 0:00:48]}
36. Kg1 {[%clk 0:00:24.1]} 36... Kf6 {[%clk 0:00:46]} 37. Kf2 {[%clk 0:00:24.6]}
37... Rc6 {[%clk 0:00:41.3]} 38. Re3 {[%clk 0:00:25.4]} 38... e5 {[%clk
0:00:42.6]} 39. Kf3 {[%clk 0:00:21.4]} 39... Kf5 {[%clk 0:00:41.7]} 40. g4+
{[%clk 0:00:22.3]} 40... hxg4+ {[%clk 0:00:42.7]} 41. hxg4+ {[%clk 0:00:23.4]}
41... Kf6 {[%clk 0:00:39.5]} 42. Rd3 {[%clk 0:00:23.3]} 42... Rc4 {[%clk
0:00:38.5]} 43. Re3 {[%clk 0:00:21]} 43... Rf4+ {[%clk 0:00:30.9]} 44. Kg3
{[%clk 0:00:21.9]} 44... Rc4 {[%clk 0:00:31.6]} 45. Kf3 {[%clk 0:00:23.1]} 45...
Kg5 {[%clk 0:00:29.6]} 46. Rxe5+ {[%clk 0:00:20.4]} 46... Kh4 {[%clk 0:00:30.9]}
47. Re3 {[%clk 0:00:21]} 47... g5 {[%clk 0:00:28.8]} 48. Rd3 {[%clk 0:00:05.9]}
48... Rxg4 {[%clk 0:00:22.4]} 49. Rd4 {[%clk 0:00:06.8]} 49... Rxd4 {[%clk
0:00:23.3]} 50. cxd4 {[%clk 0:00:08.2]} 50... Kh3 {[%clk 0:00:25.2]} 51. Kf2
{[%clk 0:00:09.2]} 51... Kh2 {[%clk 0:00:15.1]} 52. Kf3 {[%clk 0:00:09.4]} 52...
Kh3 {[%clk 0:00:15.6]} 53. Kf2 {[%clk 0:00:10.5]} 53... g4 {[%clk 0:00:11.8]}
54. Kg1 {[%clk 0:00:07.9]} 54... Kh4 {[%clk 0:00:09.7]} 55. Kg2 {[%clk
0:00:08.7]} 55... Kg5 {[%clk 0:00:11.2]} 56. Kg3 {[%clk 0:00:09.5]} 56... Kf5
{[%clk 0:00:12.7]} 57. d5 {[%clk 0:00:11]} 57... Ke5 {[%clk 0:00:14.3]} 58. d6
{[%clk 0:00:12.9]} 58... Kxd6 {[%clk 0:00:15.7]} 59. Kxg4 {[%clk 0:00:14.8]}
1/2-1/2

[Event "*** Titled Tuesday 3|2 Blitz"]
[Site "Chess.com"]
[Date "2016.08.02"]
[Round "5"]
[White "viditchess"]
[Black "FairChess_on_YouTube"]
[Result "1/2-1/2"]
[WhiteElo "2551"]
[BlackElo "2704"]
[TimeControl "180+2"]
[EndTime "12:08:20 PDT"]
[Termination "Game drawn by agreement"]

1. d4 {[%clk 0:03:01.9]} 1... d5 {[%clk 0:03:01]} 2. c4 {[%clk 0:03:02.5]} 2...
c6 {[%clk 0:03:02.6]} 3. Nf3 {[%clk 0:03:03.4]} 3... Nf6 {[%clk 0:03:03.8]} 4.
e3 {[%clk 0:03:04.6]} 4... Bf5 {[%clk 0:03:03.8]} 5. Nc3 {[%clk 0:03:04.8]} 5...
a6 {[%clk 0:03:05.2]} 6. Ne5 {[%clk 0:03:04.6]} 6... Nbd7 {[%clk 0:03:02.6]} 7.
Qb3 {[%clk 0:03:05.1]} 7... Qc7 {[%clk 0:02:57.5]} 8. cxd5 {[%clk 0:03:05]} 8...
Nxe5 {[%clk 0:02:58.6]} 9. dxe5 {[%clk 0:03:05.5]} 9... Nxd5 {[%clk 0:03:00.2]}
10. Nxd5 {[%clk 0:03:06.6]} 10... cxd5 {[%clk 0:03:01.2]} 11. Bd2 {[%clk
0:03:07.3]} 11... Qxe5 {[%clk 0:03:01.7]} 12. Be2 {[%clk 0:02:35.2]} 12... Bd7
{[%clk 0:02:44.8]} 13. Bc3 {[%clk 0:01:34.6]} 13... Qc7 {[%clk 0:02:42.5]} 14.
Qxd5 {[%clk 0:01:33.6]} 14... Bc6 {[%clk 0:02:42.7]} 15. Qg5 {[%clk 0:01:31.2]}
15... f6 {[%clk 0:02:41.4]} 16. Qg4 {[%clk 0:01:27.2]} 16... Qd7 {[%clk
0:02:40.6]} 17. Qh4 {[%clk 0:01:13]} 17... Bxg2 {[%clk 0:02:23.8]} 18. Rg1
{[%clk 0:00:30.1]} 18... Qh3 {[%clk 0:02:23.6]} 19. Qc4 {[%clk 0:00:21.5]} 19...
Rd8 {[%clk 0:02:14.8]} 20. Ba5 {[%clk 0:00:17]} 20... Rc8 {[%clk 0:01:54.6]} 21.
Qg4 {[%clk 0:00:05.3]} 21... Rc5 {[%clk 0:01:53.2]} 22. Bb4 {[%clk 0:00:02.4]}
22... Qxg4 {[%clk 0:01:44.9]} 23. Bxg4 {[%clk 0:00:04.3]} 23... Rc4 {[%clk
0:01:46.5]} 24. Rxg2 {[%clk 0:00:05.6]} 24... Rxb4 {[%clk 0:01:46.9]} 25. O-O-O
{[%clk 0:00:07.2]} 25... Kf7 {[%clk 0:01:42.6]} 26. Rd8 {[%clk 0:00:07.5]} 26...
g6 {[%clk 0:01:43]} 27. Rg1 {[%clk 0:00:04.3]} 27... Bg7 {[%clk 0:01:36.7]} 28.
Rxh8 {[%clk 0:00:05.1]} 28... Bxh8 {[%clk 0:01:38.6]} 29. Bf3 {[%clk 0:00:06.4]}
29... f5 {[%clk 0:01:38.9]} 30. b3 {[%clk 0:00:06.8]} 30... b6 {[%clk
0:01:34.6]} 31. Bg2 {[%clk 0:00:03.5]} 31... a5 {[%clk 0:01:25.9]} 32. Rd1
{[%clk 0:00:03.4]} 32... Be5 {[%clk 0:01:23]} 33. h3 {[%clk 0:00:04.3]} 33... g5
{[%clk 0:01:11.3]} 34. Kc2 {[%clk 0:00:05.4]} 34... g4 {[%clk 0:01:12.2]} 35.
hxg4 {[%clk 0:00:04.8]} 35... Rxg4 {[%clk 0:01:12.7]} 36. Bf3 {[%clk 0:00:05.2]}
36... Rh4 {[%clk 0:01:07.8]} 37. Rh1 {[%clk 0:00:05.2]} 37... Bh2 {[%clk
0:01:07.3]} 38. Kd3 {[%clk 0:00:05.7]} 38... Kf6 {[%clk 0:01:06.7]} 39. Ke2
{[%clk 0:00:06.3]} 39... e5 {[%clk 0:01:03.8]} 40. Bd5 {[%clk 0:00:07.2]} 40...
e4 {[%clk 0:01:03.5]} 41. f3 {[%clk 0:00:05.1]} 41... Ke5 {[%clk 0:01:02.4]} 42.
Bc6 {[%clk 0:00:05.8]} 42... h5 {[%clk 0:00:57.3]} 43. fxe4 {[%clk 0:00:06]}
43... fxe4 {[%clk 0:00:59.2]} 44. Be8 {[%clk 0:00:07]} 44... Rh3 {[%clk
0:00:56.5]} 45. Bd7 {[%clk 0:00:07.2]} 45... Rh4 {[%clk 0:00:56.4]} 46. Be8
{[%clk 0:00:09.1]} 46... Kf6 {[%clk 0:00:56.6]} 47. Kf1 {[%clk 0:00:08]} 47...
Bg3 {[%clk 0:00:16.5]} 48. Rxh4 {[%clk 0:00:08.4]} 48... Bxh4 {[%clk 0:00:18.4]}
49. Bxh5 {[%clk 0:00:09.9]} 49... Ke5 {[%clk 0:00:20.1]} 50. Ke2 {[%clk
0:00:10.4]} 50... Be7 {[%clk 0:00:21.3]} 51. Be8 {[%clk 0:00:11.4]} 51... Bc5
{[%clk 0:00:22.9]} 52. a4 {[%clk 0:00:12.6]} 52... Kd5 {[%clk 0:00:24.1]} 53.
Bb5 {[%clk 0:00:14.1]} 53... Be7 {[%clk 0:00:25]} 54. Bc4+ {[%clk 0:00:15.4]}
54... Kc5 {[%clk 0:00:26.7]} 55. Be6 {[%clk 0:00:16.5]} 55... Bg5 {[%clk
0:00:27.7]} 56. Bc4 {[%clk 0:00:18]} 56... Kb4 {[%clk 0:00:28.8]} 57. Be6 {[%clk
0:00:17.9]} 57... Kc5 {[%clk 0:00:28.6]} 58. Bc4 {[%clk 0:00:18.8]} 58... Bh6
{[%clk 0:00:28.1]} 1/2-1/2

[Event "*** Titled Tuesday 3|2 Blitz"]
[Site "Chess.com"]
[Date "2016.08.02"]
[Round "5"]
[White "Makalexa"]
[Black "ruifeng"]
[Result "1-0"]
[WhiteElo "2160"]
[BlackElo "2287"]
[TimeControl "180+2"]
[EndTime "12:09:18 PDT"]
[Termination "Makalexa won by resignation"]

1. e4 {[%clk 0:02:54.4]} 1... e5 {[%clk 0:03:00.1]} 2. Nf3 {[%clk 0:02:54.2]}
2... Nc6 {[%clk 0:02:58.3]} 3. Bc4 {[%clk 0:02:51.2]} 3... Be7 {[%clk
0:02:49.9]} 4. d4 {[%clk 0:02:50]} 4... exd4 {[%clk 0:02:48.6]} 5. c3 {[%clk
0:02:49.7]} 5... d6 {[%clk 0:02:18.3]} 6. cxd4 {[%clk 0:02:47.2]} 6... Nf6
{[%clk 0:02:19.5]} 7. Nc3 {[%clk 0:02:47]} 7... O-O {[%clk 0:02:20.1]} 8. Bb3
{[%clk 0:02:34.8]} 8... Bg4 {[%clk 0:02:20.3]} 9. Be3 {[%clk 0:02:33.7]} 9...
Re8 {[%clk 0:01:38.9]} 10. h3 {[%clk 0:02:32]} 10... Bh5 {[%clk 0:01:39.7]} 11.
O-O {[%clk 0:02:14.4]} 11... Bg6 {[%clk 0:01:36.4]} 12. Nd2 {[%clk 0:02:01.2]}
12... Bf8 {[%clk 0:01:23.3]} 13. f3 {[%clk 0:01:51.2]} 13... a6 {[%clk
0:01:12.2]} 14. a3 {[%clk 0:01:50.6]} 14... b5 {[%clk 0:01:13.2]} 15. Rc1 {[%clk
0:01:47.6]} 15... Na5 {[%clk 0:01:14.1]} 16. Ba2 {[%clk 0:01:45.6]} 16... c5
{[%clk 0:01:15.3]} 17. b4 {[%clk 0:01:24.4]} 17... Nb7 {[%clk 0:01:06.6]} 18.
Nd5 {[%clk 0:01:22.2]} 18... Rc8 {[%clk 0:01:02]} 19. Nxf6+ {[%clk 0:01:21.2]}
19... Qxf6 {[%clk 0:01:00.8]} 20. Nb3 {[%clk 0:01:13.2]} 20... c4 {[%clk
0:01:00.8]} 21. Na1 {[%clk 0:01:11.7]} 21... Nd8 {[%clk 0:00:57.1]} 22. Qd2
{[%clk 0:01:06]} 22... Nc6 {[%clk 0:00:56.1]} 23. Nc2 {[%clk 0:01:03.5]} 23...
Qd8 {[%clk 0:00:52.5]} 24. Bf2 {[%clk 0:00:57]} 24... f6 {[%clk 0:00:53.2]} 25.
Ne3 {[%clk 0:00:57.3]} 25... Bf7 {[%clk 0:00:51.1]} 26. g4 {[%clk 0:00:54.3]}
26... a5 {[%clk 0:00:50.4]} 27. bxa5 {[%clk 0:00:51.3]} 27... Qxa5 {[%clk
0:00:50.7]} 28. Qxa5 {[%clk 0:00:51]} 28... Nxa5 {[%clk 0:00:51.9]} 29. Rb1
{[%clk 0:00:51.8]} 29... Nb3 {[%clk 0:00:51.7]} 30. Bxb3 {[%clk 0:00:50.8]}
30... cxb3 {[%clk 0:00:52.6]} 31. d5 {[%clk 0:00:52.7]} 31... Rc3 {[%clk
0:00:50.8]} 32. Rfc1 {[%clk 0:00:50.1]} 32... Rec8 {[%clk 0:00:49.7]} 33. Rxc3
{[%clk 0:00:51.5]} 33... Rxc3 {[%clk 0:00:50.2]} 34. Kf1 {[%clk 0:00:51.4]}
34... Be8 {[%clk 0:00:45]} 35. Ke2 {[%clk 0:00:50.7]} 35... b4 {[%clk
0:00:27.6]} 36. Be1 {[%clk 0:00:45.5]} 36... Bb5+ {[%clk 0:00:22.9]} 37. Kf2
{[%clk 0:00:46.7]} 37... Rd3 {[%clk 0:00:13.9]} 38. Bxb4 {[%clk 0:00:47.1]}
38... Be7 {[%clk 0:00:14.8]} 39. Nf5 {[%clk 0:00:41.6]} 39... Bd8 {[%clk
0:00:16.1]} 40. Nxd6 {[%clk 0:00:39.4]} 40... Bb6+ {[%clk 0:00:17.2]} 41. Kg2
{[%clk 0:00:38.9]} 41... Ba4 {[%clk 0:00:17.8]} 42. Nc4 {[%clk 0:00:37.6]} 42...
Bd4 {[%clk 0:00:18]} 43. Nb2 {[%clk 0:00:35.6]} 43... Bxb2 {[%clk 0:00:14.5]}
44. Rxb2 {[%clk 0:00:37.5]} 44... Kf7 {[%clk 0:00:15.1]} 45. Kg3 {[%clk
0:00:29.2]} 45... Ke8 {[%clk 0:00:15.6]} 46. h4 {[%clk 0:00:29.6]} 46... Kf7
{[%clk 0:00:16.5]} 47. g5 {[%clk 0:00:30.6]} 47... h5 {[%clk 0:00:15.7]} 48.
gxf6 {[%clk 0:00:30.4]} 48... gxf6 {[%clk 0:00:16.4]} 49. Kf4 {[%clk 0:00:31.9]}
49... Bd7 {[%clk 0:00:13.8]} 50. Bd2 {[%clk 0:00:29.5]} 50... Ba4 {[%clk
0:00:14.1]} 51. Be3 {[%clk 0:00:29.9]} 51... Bd7 {[%clk 0:00:14.4]} 52. Bc5
{[%clk 0:00:26.5]} 52... Ba4 {[%clk 0:00:15.1]} 53. Bf2 {[%clk 0:00:26.8]} 53...
Bd7 {[%clk 0:00:15.6]} 54. Bb6 {[%clk 0:00:24.2]} 54... Ba4 {[%clk 0:00:16.4]}
55. Bc7 {[%clk 0:00:24.7]} 55... Rc3 {[%clk 0:00:16.9]} 56. d6 {[%clk
0:00:24.4]} 56... Rc2 {[%clk 0:00:16.7]} 57. Rb1 {[%clk 0:00:24.4]} 57... b2
{[%clk 0:00:16.7]} 58. Bb6 {[%clk 0:00:25.3]} 58... Rd2 {[%clk 0:00:14.6]} 59.
Ke3 {[%clk 0:00:22.2]} 59... Rxd6 {[%clk 0:00:12.2]} 60. Rxb2 {[%clk 0:00:22.2]}
60... Bd1 {[%clk 0:00:11.6]} 61. Bc5 {[%clk 0:00:21.1]} 61... Rc6 {[%clk
0:00:12.2]} 62. Bd4 {[%clk 0:00:21.4]} 62... Ba4 {[%clk 0:00:12.4]} 63. Rb6
{[%clk 0:00:22.4]} 63... Rc2 {[%clk 0:00:12.7]} 64. Rxf6+ {[%clk 0:00:22.1]}
64... Ke7 {[%clk 0:00:13.9]} 65. Rb6 {[%clk 0:00:22.3]} 65... Ra2 {[%clk
0:00:14.9]} 66. Kf4 {[%clk 0:00:22.4]} 66... Kf7 {[%clk 0:00:15.5]} 67. Ke5
{[%clk 0:00:23]} 67... Rxa3 {[%clk 0:00:16.6]} 68. Ra6 {[%clk 0:00:24.6]} 68...
Ra2 {[%clk 0:00:16.4]} 69. f4 {[%clk 0:00:25.7]} 69... Bb3 {[%clk 0:00:17.7]}
70. Rxa2 {[%clk 0:00:25.8]} 70... Bxa2 {[%clk 0:00:19]} 71. f5 {[%clk
0:00:27.7]} 71... Bb1 {[%clk 0:00:18.9]} 72. Kf4 {[%clk 0:00:29.6]} 72... Bd3
{[%clk 0:00:15.8]} 73. e5 {[%clk 0:00:31]} 73... Be2 {[%clk 0:00:16.8]} 74. e6+
{[%clk 0:00:32.1]} 74... Ke7 {[%clk 0:00:17.5]} 75. Ke5 {[%clk 0:00:33.7]} 75...
Bg4 {[%clk 0:00:18.1]} 76. Bc5+ {[%clk 0:00:35.6]} 76... Ke8 {[%clk 0:00:19.1]}
77. f6 {[%clk 0:00:37.5]} 1-0

[Event "*** Titled Tuesday 3|2 Blitz"]
[Site "Chess.com"]
[Date "2016.08.02"]
[Round "5"]
[White "stefanodinn"]
[Black "Journey_to_GrandMaster_YT"]
[Result "1-0"]
[WhiteElo "2219"]
[BlackElo "2425"]
[TimeControl "180+2"]
[EndTime "12:09:45 PDT"]
[Termination "stefanodinn won by resignation"]

1. e4 {[%clk 0:03:01.9]} 1... d6 {[%clk 0:03:01.2]} 2. d4 {[%clk 0:03:00.5]}
2... Nf6 {[%clk 0:03:02.4]} 3. Nc3 {[%clk 0:02:56.7]} 3... Nbd7 {[%clk
0:03:03.3]} 4. f4 {[%clk 0:02:56.2]} 4... e5 {[%clk 0:03:03.5]} 5. Nf3 {[%clk
0:02:57.2]} 5... c6 {[%clk 0:02:57.6]} 6. dxe5 {[%clk 0:02:38.4]} 6... dxe5
{[%clk 0:02:58.1]} 7. fxe5 {[%clk 0:02:36.5]} 7... Ng4 {[%clk 0:02:57.9]} 8. e6
{[%clk 0:02:32.2]} 8... fxe6 {[%clk 0:02:56.5]} 9. Ng5 {[%clk 0:02:31.6]} 9...
Nge5 {[%clk 0:02:45.4]} 10. Nxe6 {[%clk 0:02:08]} 10... Qh4+ {[%clk 0:02:43.9]}
11. g3 {[%clk 0:02:08]} 11... Qf6 {[%clk 0:02:40.4]} 12. Nc7+ {[%clk 0:01:32.5]}
12... Kf7 {[%clk 0:02:39.7]} 13. Bg2 {[%clk 0:01:20.8]} 13... Kg8 {[%clk
0:01:54.8]} 14. Rf1 {[%clk 0:01:08.9]} 14... Qg6 {[%clk 0:01:48.1]} 15. Nxa8
{[%clk 0:01:06.2]} 15... h5 {[%clk 0:01:47.1]} 16. Bf4 {[%clk 0:01:00]} 16... h4
{[%clk 0:01:47.6]} 17. Qe2 {[%clk 0:00:54.3]} 17... hxg3 {[%clk 0:01:46.8]} 18.
Bxg3 {[%clk 0:00:51.5]} 18... Qd6 {[%clk 0:01:33.7]} 19. Qd2 {[%clk 0:00:37.7]}
19... Qb4 {[%clk 0:01:27.4]} 20. a3 {[%clk 0:00:11.6]} 20... Qxb2 {[%clk
0:01:26.1]} 21. Ra2 {[%clk 0:00:12.2]} 21... Nc4 {[%clk 0:01:11.8]} 22. Rxb2
{[%clk 0:00:12.5]} 22... Nxd2 {[%clk 0:01:12.7]} 23. Kxd2 {[%clk 0:00:13.1]}
23... Bxa3 {[%clk 0:01:14.6]} 24. Rb3 {[%clk 0:00:11.8]} 24... Be7 {[%clk
0:01:13.4]} 25. Nc7 {[%clk 0:00:11.4]} 25... Nc5 {[%clk 0:01:14.4]} 26. Rbb1
{[%clk 0:00:10]} 26... Bg5+ {[%clk 0:01:14.7]} 27. Ke2 {[%clk 0:00:08.8]} 27...
Bg4+ {[%clk 0:01:13.2]} 28. Bf3 {[%clk 0:00:09.5]} 28... Bh3 {[%clk 0:01:14.2]}
29. Rfd1 {[%clk 0:00:08.1]} 29... Kh7 {[%clk 0:01:14.7]} 30. Na2 {[%clk
0:00:04.4]} 30... Rf8 {[%clk 0:01:07.8]} 31. Rf1 {[%clk 0:00:03.8]} 31... Bxf1+
{[%clk 0:01:07.2]} 32. Rxf1 {[%clk 0:00:04]} 32... Rd8 {[%clk 0:01:07.9]} 33.
Rd1 {[%clk 0:00:04.7]} 33... Rf8 {[%clk 0:01:09]} 34. Rd4 {[%clk 0:00:04.2]}
34... Bf6 {[%clk 0:01:07.5]} 35. e5 {[%clk 0:00:05.4]} 35... Bg5 {[%clk
0:01:08.1]} 36. Rc4 {[%clk 0:00:06.5]} 36... Nd7 {[%clk 0:01:01.4]} 37. Ne6
{[%clk 0:00:05.9]} 37... Rf5 {[%clk 0:00:57.1]} 38. Be4 {[%clk 0:00:06.2]} 38...
Kg6 {[%clk 0:00:51.6]} 39. Nxg5 {[%clk 0:00:06.4]} 39... Kxg5 {[%clk 0:00:52.1]}
40. Bxf5 {[%clk 0:00:07.2]} 40... Kxf5 {[%clk 0:00:54]} 41. Rd4 {[%clk
0:00:08.4]} 41... Nc5 {[%clk 0:00:53.7]} 42. Rd6 {[%clk 0:00:09.3]} 42... Ne4
{[%clk 0:00:53.4]} 43. Rd7 {[%clk 0:00:09.8]} 43... Nc5 {[%clk 0:00:53.5]} 44.
Rxg7 {[%clk 0:00:10.2]} 44... a5 {[%clk 0:00:54.7]} 45. h4 {[%clk 0:00:11.2]}
45... b5 {[%clk 0:00:53.6]} 46. h5 {[%clk 0:00:12.2]} 46... Ne6 {[%clk
0:00:55.1]} 47. Ra7 {[%clk 0:00:11.4]} 47... Kg5 {[%clk 0:00:53.1]} 48. Rxa5
{[%clk 0:00:11]} 48... Kxh5 {[%clk 0:00:54.2]} 49. Nb4 {[%clk 0:00:11.9]} 49...
c5 {[%clk 0:00:52.7]} 50. Nd3 {[%clk 0:00:12.6]} 50... Kg4 {[%clk 0:00:52.6]}
51. Bf2 {[%clk 0:00:12.3]} 51... c4 {[%clk 0:00:52.2]} 52. Nc5 {[%clk
0:00:13.2]} 52... Nf4+ {[%clk 0:00:50.2]} 53. Kf1 {[%clk 0:00:13.9]} 53... Kf5
{[%clk 0:00:50.6]} 54. Rxb5 {[%clk 0:00:14.2]} 54... Ng6 {[%clk 0:00:40.5]} 55.
Rb4 {[%clk 0:00:10.3]} 55... Nxe5 {[%clk 0:00:40.7]} 56. Bd4 {[%clk 0:00:10.9]}
56... Nf3 {[%clk 0:00:39.4]} 57. c3 {[%clk 0:00:08.7]} 57... Kf4 {[%clk
0:00:31.7]} 58. Ke2 {[%clk 0:00:08.6]} 58... Nh4 {[%clk 0:00:28]} 59. Rxc4
{[%clk 0:00:08.5]} 59... Nf5 {[%clk 0:00:29.6]} 60. Be3+ {[%clk 0:00:08.7]}
60... Kg3 {[%clk 0:00:29.2]} 61. Re4 {[%clk 0:00:08.1]} 61... Kg2 {[%clk
0:00:27.2]} 62. Re5 {[%clk 0:00:08.3]} 62... Ng3+ {[%clk 0:00:28]} 63. Kd3
{[%clk 0:00:09.4]} 63... Kf3 {[%clk 0:00:29.7]} 64. Bd2 {[%clk 0:00:09.2]} 64...
Kg4 {[%clk 0:00:29.7]} 65. c4 {[%clk 0:00:08.9]} 65... Nh1 {[%clk 0:00:28.9]}
66. Nb3 {[%clk 0:00:08.8]} 66... Nf2+ {[%clk 0:00:29.8]} 67. Kc2 {[%clk
0:00:08.3]} 67... Kf3 {[%clk 0:00:18.1]} 68. Rf5+ {[%clk 0:00:08.3]} 68... Ke2
{[%clk 0:00:16.7]} 69. Rxf2+ {[%clk 0:00:09.2]} 69... Kxf2 {[%clk 0:00:17.2]}
70. Kd3 {[%clk 0:00:10.3]} 70... Kf3 {[%clk 0:00:13.4]} 71. c5 {[%clk
0:00:10.2]} 1-0